bitfinex/quotes_SOLUSD_20260308
["timestamp","ask_amount","ask_price","bid_price","bid_amount"]
[1772952380976,0.45432286,82.459,82.438,0.4542223]
[1772952389593,0.45432286,82.457,82.438,0.4542223]
[1772952389782,12.07960824,82.49,82.399,103.6]
[1772952389783,0.45432286,82.449,82.407,30.33692221]
[1772952391687,4.70809943,82.45,82.389,103.6]
[1772952391688,0.45432286,82.447,82.41,0.4542223]
[1772952395700,0.49092023,82.445,82.412,0.48822607]
[1772952397800,0.49092023,82.445,82.414,0.48822607]
[1772952398000,0.49092023,82.443,82.414,0.48822607]
[1772952401901,0.49092023,82.441,82.416,0.48822607]
[1772952407714,0.49092023,82.439,82.416,0.48822607]
[1772952409112,0.49092023,82.439,82.418,0.48822607]
[1772952420312,0.49092023,82.45,82.42,0.48822607]
[1772952422737,0.49359217,82.447,82.409,0.46419412]
[1772952422916,12.12870986,82.449,82.398,0.46419412]
[1772952422917,0.49359217,82.429,82.398,0.46419412]
[1772952423931,0.49359217,82.429,82.4,0.46419412]
[1772952428648,0.49359217,82.429,82.401,12.13577505]
[1772952428824,0.49359217,82.429,82.402,0.46419412]
[1772952431625,0.49359217,82.429,82.403,12.1354805]
[1772952431825,0.49359217,82.429,82.404,0.46419412]
[1772952440541,0.49359217,82.429,82.405,12.13518597]
[1772952440741,0.49359217,82.429,82.406,0.46419412]
[1772952443658,0.49359217,82.429,82.407,12.13489145]
[1772952443860,0.49359217,82.429,82.408,0.46419412]
[1772952449559,12.13179987,82.428,82.408,0.46419412]
[1772952449767,0.49359217,82.426,82.398,12.6002869]
[1772952449949,0.49359217,82.426,82.398,12.13609278]
[1772952451059,0.49359217,82.424,82.398,12.13609278]
[1772952452659,0.48681433,82.422,82.398,12.13609278]
[1772952454359,0.48681433,82.42,82.397,0.49212627]
[1772952462658,0.48681433,82.42,82.398,12.13621689]
[1772952462859,0.48681433,82.42,82.399,0.49212627]
[1772952467573,0.28432314,82.429,82.399,0.49212627]
[1772952467777,0.28432314,82.427,82.399,0.49212627]
[1772952469778,0.48681433,82.424,82.399,0.49212627]
[1772952470663,0.48681433,82.422,82.399,0.49212627]
[1772952471685,0.48681433,82.422,82.4,12.13592233]
[1772952471986,0.48681433,82.422,82.401,0.49212627]
[1772952473661,12.13283022,82.421,82.401,0.49212627]
[1772952473867,0.48681433,82.42,82.401,0.49212627]
[1772952481483,0.48681433,82.42,82.39,0.2]
[1772952481484,0.77113747,82.418,82.392,0.49212627]
[1772952481676,0.48681433,82.409,82.392,0.49212627]
[1772952481874,0.48681433,82.407,82.39,0.2]
[1772952482787,0.48197557,82.405,82.39,0.2]
[1772952484279,4.71135491,82.42,82.391,0.48592232]
[1772952484600,4.71135491,82.41,82.39,0.2]
[1772952485370,0.28432314,82.424,82.39,0.2]
[1772952485371,4.71135491,82.42,82.39,0.2]
[1772952485672,0.28432314,82.419,82.391,0.48592232]
[1772952486395,0.07250226,82.418,82.391,0.48592232]
[1772952488776,0.07249939,82.416,82.391,0.48592232]
[1772952491676,0.48197557,82.399,82.38,0.2]
[1772952493707,12.13621689,82.398,82.38,0.2]
[1772952495989,12.13621689,82.398,82.38,0.70005936]
[1772952496393,12.13621689,82.398,82.381,0.50005936]
[1772952496900,12.13555739,82.403,82.381,0.50005936]
[1772952498510,4.71135491,82.4,82.381,0.50005936]
[1772952501210,12.13606961,82.399,82.381,0.50005936]
[1772952502501,0.28432314,82.407,82.381,0.50005936]
[1772952503890,12.13503871,82.406,82.381,0.50005936]
[1772952505202,0.28432314,82.399,82.381,0.50005936]
[1772952506712,4.71506827,82.39,82.36,0.2]
[1772952507012,4.71506827,82.38,82.361,0.50005936]
[1772952507711,0.28432314,82.377,82.361,0.50005936]
[1772952509514,12.13945809,82.376,82.361,0.50005936]
[1772952515910,0.28432314,82.369,82.35,0.2]
[1772952517003,0.28432314,82.369,82.351,0.50005936]
[1772952517205,0.28432314,82.367,82.351,0.50005936]
[1772952523931,12.14093193,82.366,82.35,0.2]
[1772952524134,0.28432314,82.359,82.328,0.50005936]
[1772952524427,42.49326177,82.366,82.331,0.50005936]
[1772952524428,4.71506827,82.35,82.331,0.50005936]
[1772952525429,12.14343829,82.349,82.331,0.50005936]
[1772952526522,12.14343829,82.349,82.326,0.50005936]
[1772952526721,12.14343829,82.349,82.324,0.50005936]
[1772952526921,0.28432314,82.348,82.324,0.50005936]
[1772952527337,0.28432314,82.348,82.328,0.50005936]
[1772952527738,0.28432314,82.346,82.328,0.50005936]
[1772952528331,0.28432314,82.346,82.331,0.50005936]
[1772952540336,12.14402817,82.345,82.331,0.50005936]
[1772952541155,0.28432314,82.339,82.33,1e-08]
[1772952541446,0.28432314,82.339,82.315,0.50005936]
[1772952541839,0.47533009,82.338,82.3,0.1]
[1772952542022,0.47533009,82.328,82.3,0.1]
[1772952542219,12.14801137,82.318,82.3,0.1]
[1772952542432,0.46064511,82.317,82.3,0.1]
[1772952543936,12.14830652,82.316,82.302,0.49969859]
[1772952544537,0.45293986,82.315,82.3,0.1]
[1772952545045,0.45293986,82.315,82.28,12.25360661]
[1772952546335,12.14860169,82.314,82.28,0.1]
[1772952546535,0.28432314,82.317,82.291,0.49969859]
[1772952546849,12.14801483,82.318,82.291,0.49969859]
[1772952547052,0.45293986,82.331,82.292,0.49969859]
[1772952547353,0.45293986,82.335,82.292,0.49969859]
[1772952547574,12.14535561,82.336,82.292,0.49969859]
[1772952548573,12.1449131,82.339,82.294,0.49969859]
[1772952550574,0.45293986,82.347,82.296,0.49969859]
[1772952551479,12.14343829,82.349,82.297,0.49969859]
[1772952552562,12.59637815,82.349,82.297,0.49969859]
[1772952553782,12.59637815,82.349,82.285,64.45776699]
[1772952553783,0.45293986,82.348,82.299,0.49969859]
[1772952554767,12.59667308,82.347,82.301,0.49969859]
[1772952555170,0.45293986,82.346,82.301,0.49969859]
[1772952555689,12.14373322,82.347,82.301,0.49969859]
[1772952557070,12.14299591,82.352,82.303,0.49969859]
[1772952557368,0.45293986,82.351,82.303,0.49969859]
[1772952560491,0.45293986,82.349,82.305,0.49969859]
[1772952560683,0.45293986,82.348,82.305,0.49969859]
[1772952561790,42.50306628,82.347,82.306,12.14978251]
[1772952562002,0.45293986,82.346,82.307,0.49969859]
[1772952566897,0.45293986,82.344,82.309,0.49969859]
[1772952567994,0.59510143,82.339,82.299,0.49969859]
[1772952568179,0.45293986,82.338,82.299,0.49969859]
[1772952569784,0.45293986,82.336,82.299,0.49969859]
[1772952570098,0.45293986,82.336,82.301,0.49969859]
[1772952570678,0.737263,82.329,82.295,0.49969859]
[1772952570997,0.45293986,82.318,82.295,0.49969859]
[1772952571901,0.45293986,82.316,82.295,0.49969859]
[1772952572101,0.45293986,82.316,82.291,0.49969859]
[1772952573404,0.49657252,82.314,82.291,0.49969859]
[1772952575807,0.49657252,82.312,82.291,0.49969859]
[1772952577603,0.49657252,82.312,82.29,0.58071087]
[1772952577808,0.49657252,82.31,82.29,0.58071087]
[1772952580416,0.49657252,82.308,82.29,0.1]
[1772952581716,0.49657252,82.306,82.29,0.1]
[1772952585226,0.49657252,82.304,82.29,0.1]
[1772952585805,0.49657252,82.303,82.28,0.1]
[1772952586001,0.14216157,82.299,82.27,0.1]
[1772952586205,0.49657252,82.288,82.26,0.1]
[1772952587526,12.15258789,82.287,82.26,0.1]
[1772952587711,0.49657252,82.286,82.261,0.42937572]
[1772952588023,0.49657252,82.299,82.26,0.1]
[1772952588226,0.49657252,82.304,82.262,0.42937572]
[1772952589408,0.49657252,82.302,82.264,0.43021487]
[1772952590928,12.15052064,82.301,82.266,0.43062563]
[1772952591132,12.64709316,82.301,82.266,0.43062563]
[1772952592614,12.64649041,82.306,82.266,0.43062563]
[1772952593217,12.64649041,82.306,82.268,0.43142827]
[1772952593537,0.49657252,82.305,82.268,0.43142827]
[1772952600542,0.49657252,82.315,82.27,0.43448155]
[1772952603444,12.14860169,82.314,82.272,0.4362296]
[1772952604637,12.65124459,82.318,82.274,0.43656934]
[1772952604835,0.50323322,82.317,82.274,0.43656934]
[1772952608446,0.50323322,82.315,82.276,0.4378765]
[1772952611950,0.50323322,82.315,82.278,0.43882396]
[1772952614155,0.50323322,82.315,82.28,0.43943035]
[1772952616862,0.50323322,82.315,82.282,0.44032967]
[1772952619538,0.50323322,82.315,82.283,12.15317866]
[1772952619741,0.50323322,82.315,82.284,0.44118823]
[1772952623553,0.50323322,82.319,82.286,0.44229214]
[1772952626043,0.50323322,82.319,82.271,103.6]
[1772952626044,0.50323322,82.319,82.287,12.15258789]
[1772952626857,0.50323322,82.317,82.287,12.15258789]
[1772952627055,0.50323322,82.315,82.287,12.59567626]
[1772952627748,0.50323322,82.315,82.288,0.4433459]
[1772952629065,0.50323322,82.315,82.29,0.44359968]
[1772952631872,0.50323322,82.313,82.29,0.44359968]
[1772952632866,0.50323322,82.313,82.291,0.44484835]
[1772952633672,0.50308351,82.311,82.276,0.44509103]
[1772952635050,0.50308351,82.309,82.27,0.44533376]
[1772952635263,0.50308351,82.308,82.27,0.44533376]
[1772952636874,0.50308351,82.306,82.273,0.44580422]
[1772952639656,0.50308351,82.306,82.275,0.44649844]
[1772952641370,0.50308351,82.306,82.276,12.15421265]
[1772952641568,0.50308351,82.306,82.277,0.44694875]
[1772952647172,0.50308351,82.32,82.279,0.4480115]
[1772952648779,0.50308351,82.318,82.281,0.44842119]
[1772952655486,0.50308351,82.318,82.283,0.44977744]
[1772952658397,0.50308351,82.318,82.285,0.4503284]
[1772952659780,0.50308351,82.318,82.286,42.53457453]
[1772952659986,0.50308351,82.318,82.287,0.45050314]
[1772952661081,0.50308351,82.318,82.289,0.45067588]
[1772952662782,0.47320589,82.339,82.289,0.45067588]
[1772952662983,0.47320589,82.339,82.28,0.28432314]
[1772952662984,0.47320589,82.359,82.295,0.45134913]
[1772952663206,0.47320589,82.349,82.296,0.45134913]
[1772952663712,4.72234775,82.34,82.296,0.45134913]
[1772952663884,0.47320589,82.328,82.284,0.45151588]
[1772952664207,0.47320589,82.319,82.271,0.45151588]
[1772952667223,0.47320589,82.317,82.273,0.45201141]
[1772952669894,0.47320589,82.317,82.276,0.45249043]
[1772952672010,0.47320589,82.317,82.279,0.45242412]
[1772952672212,0.47320589,82.315,82.279,0.45242412]
[1772952674907,0.47320589,82.315,82.281,0.45177093]
[1772952676604,0.47320589,82.314,82.281,0.45177093]
[1772952676807,0.47320589,82.312,82.277,0.45135005]
[1772952680700,0.47320589,82.312,82.279,0.45054505]
[1772952684524,0.47320589,82.312,82.281,0.44976937]
[1772952686932,0.47320589,82.312,82.283,0.44939704]
[1772952689927,0.47320589,82.312,82.285,0.44884998]
[1772952692834,0.47320589,82.312,82.287,0.44815113]
[1772952693939,0.4977147,82.321,82.289,0.44797774]
[1772952696237,0.4977147,82.321,82.291,0.44747393]
[1772952697442,0.4977147,82.321,82.293,0.44731627]
[1772952700352,0.4977147,82.321,82.294,12.59839913]
[1772952700852,0.4977147,82.321,82.295,0.44684495]
[1772952704654,0.4977147,82.321,82.297,0.44623785]
[1772952710344,0.4977147,82.321,82.299,0.44537744]
[1772952712265,0.4977147,82.325,82.301,0.44523941]
[1772952714561,0.4977147,82.325,82.302,12.15037301]
[1772952714750,0.4977147,82.325,82.303,0.44483323]
[1772952715143,12.14461578,82.342,82.303,0.47711616]
[1772952717269,0.4977147,82.339,82.305,0.47711616]
[1772952719856,0.4977147,82.337,82.307,0.47711616]
[1772952722856,0.4977147,82.337,82.308,12.14948729]
[1772952723056,0.4977147,82.337,82.309,0.48367194]
[1772952724466,0.4977147,82.337,82.31,12.14919207]
[1772952724654,0.50431449,82.335,82.293,0.48367194]
[1772952724858,0.50431449,82.335,82.294,0.48367194]
[1772952727381,0.50431449,82.333,82.296,0.48367194]
[1772952728780,0.50431449,82.333,82.297,0.48367194]
[1772952729972,0.50431449,82.333,82.299,0.48367194]
[1772952732283,0.50431449,82.347,82.301,0.48367194]
[1772952732662,0.50431449,82.346,82.301,0.48367194]
[1772952734669,0.50431449,82.346,82.303,0.48367194]
[1772952734988,0.50431449,82.344,82.303,0.48367194]
[1772952737888,0.50431449,82.344,82.305,0.48367194]
[1772952739693,0.50431449,82.344,82.307,0.48367194]
[1772952740695,0.50431449,82.36,82.31,0.48367194]
[1772952742189,0.50431449,82.36,82.313,0.48367194]
[1772952744992,0.50431449,82.36,82.316,0.48367194]
[1772952748778,0.50431449,82.361,82.319,0.48367194]
[1772952750878,0.50431449,82.361,82.324,0.28432314]
[1772952751094,0.50431449,82.361,82.325,0.48367194]
[1772952755988,0.50431449,82.361,82.328,0.51232891]
[1772952756390,0.50240304,82.36,82.326,42.51390811]
[1772952758202,0.50240304,82.358,82.326,0.51232891]
[1772952759805,0.50240304,82.358,82.328,0.51232891]
[1772952761000,0.50240304,82.358,82.33,0.51232891]
[1772952763084,0.50240304,82.356,82.331,12.1460932]
[1772952764105,0.50240304,82.354,82.331,12.1460932]
[1772952773607,0.50240304,82.354,82.304,46.50342932]
[1772952773810,0.50240304,82.352,82.305,0.51232891]
[1772952775814,0.50240304,82.35,82.307,0.51232891]
[1772952777901,0.50240304,82.348,82.309,0.51232891]
[1772952779119,0.50240304,82.348,82.311,0.51232891]
[1772952781111,0.50240304,82.348,82.313,0.51232891]
[1772952782005,0.50240304,82.346,82.313,0.51232891]
[1772952783713,0.50240304,82.346,82.295,3.69383402]
[1772952783714,0.50240304,82.346,82.315,0.48203046]
[1772952787219,0.50240304,82.346,82.317,0.48203046]
[1772952790720,0.48627285,82.345,82.302,0.48203046]
[1772952790910,0.48627285,82.339,82.298,0.48203046]
[1772952791111,0.48627285,82.338,82.298,0.48203046]
[1772952792722,0.48627285,82.336,82.299,12.63284638]
[1772952794223,0.48627285,82.336,82.299,12.15081592]
[1772952795023,0.48627285,82.334,82.299,12.15081592]
[1772952796222,0.48627285,82.334,82.296,0.48203046]
[1772952797408,0.48627285,82.332,82.297,12.63314167]
[1772952797925,0.48627285,82.332,82.297,12.15111121]
[1772952798226,0.48627285,82.332,82.298,0.48203046]
[1772952803132,0.48627285,82.33,82.3,0.48203046]
[1772952805930,0.48627285,82.328,82.302,0.48203046]
[1772952807137,0.48627285,82.328,82.304,0.48203046]
[1772952819544,0.46230846,82.337,82.306,0.48702097]
[1772952819834,30.35599255,82.357,82.306,0.48702097]
[1772952819835,0.46230846,82.348,82.306,0.48702097]
[1772952823740,0.46230846,82.348,82.308,0.48702097]
[1772952825236,0.46230846,82.348,82.31,0.48702097]
[1772952828430,0.46230846,82.346,82.312,0.48702097]
[1772952837249,0.46230846,82.346,82.314,0.48702097]
[1772952840168,0.46230846,82.346,82.315,12.1484541]
[1772952840358,0.46230846,82.346,82.316,0.48702097]
[1772952843363,0.45891996,82.344,82.318,0.47459113]
[1772952847680,0.45891996,82.344,82.32,0.47459113]
[1772952853068,0.45891996,82.355,82.322,0.47459113]
[1772952853848,3.31664282,82.352,82.322,0.47459113]
[1772952854053,0.45891996,82.351,82.324,0.47459113]
[1772952856070,0.45891996,82.351,82.31,0.28432314]
[1772952856071,0.45891996,82.351,82.326,0.47459113]
[1772952864078,0.45891996,82.351,82.328,0.47459113]
[1772952866779,0.45891996,82.349,82.316,0.47459113]
[1772952866961,0.45891996,82.349,82.312,12.14889688]
[1772952866962,0.45891996,82.349,82.313,0.47459113]
[1772952868586,0.45891996,82.349,82.315,0.47459113]
[1772952872488,0.45891996,82.349,82.317,0.47459113]
[1772952873481,0.45891996,82.349,82.319,0.50663034]
[1772952874492,0.46216656,82.347,82.318,12.14801137]
[1772952875590,0.46216656,82.345,82.318,12.14801137]
[1772952877994,0.46216656,82.343,82.318,12.14801137]
[1772952879193,0.46216656,82.343,82.318,0.50663034]
[1772952880970,0.46216656,82.341,82.318,0.50663034]
[1772952882168,0.46216656,82.339,82.318,0.50663034]
[1772952885502,0.46216656,82.339,82.319,12.14786379]
[1772952885703,0.46216656,82.339,82.32,0.50663034]
[1772952888103,0.46216656,82.339,82.321,12.14756866]
[1772952888785,0.46216656,82.339,82.322,0.50663034]
[1772952889276,0.46216656,82.352,82.322,0.50663034]
[1772952889478,0.46216656,82.361,82.322,0.50663034]
[1772952891998,0.46216656,82.361,82.324,0.50663034]
[1772952892407,0.46216656,82.365,82.324,0.50663034]
[1772952892899,2.74834485,82.364,82.324,0.50663034]
[1772952894112,2.28617829,82.364,82.327,0.50663034]
[1772952894402,2.28617829,82.364,82.329,0.50663034]
[1772952894603,2.28617829,82.364,82.331,0.50663034]
[1772952897209,2.28617829,82.364,82.333,0.50663034]
[1772952900115,2.28617829,82.364,82.335,0.50663034]
[1772952900806,0.46216656,82.389,82.337,0.50663034]
[1772952901693,0.46216656,82.389,82.34,0.50663034]
[1772952903107,0.46216656,82.389,82.343,0.46291191]
[1772952904407,0.46216656,82.389,82.345,0.46291191]
[1772952905897,4.91992224,82.41,82.35,0.46291191]
[1772952905898,0.50583819,82.393,82.35,0.46291191]
[1772952908110,0.50583819,82.393,82.353,0.28432314]
[1772952908306,0.50583819,82.393,82.354,0.46291191]
[1772952908909,0.50583819,82.399,82.354,0.46291191]
[1772952910705,0.50583819,82.399,82.356,0.28432314]
[1772952910903,0.50583819,82.399,82.357,0.46291191]
[1772952911409,0.2,82.41,82.356,0.28432314]
[1772952911410,0.50583819,82.403,82.36,0.46291191]
[1772952911614,0.50583819,82.403,82.362,0.46291191]
[1772952914016,0.50583819,82.403,82.365,0.46291191]
[1772952914214,0.2,82.41,82.366,0.46291191]
[1772952916214,0.2,82.41,82.369,0.46291191]
[1772952916414,0.50583819,82.409,82.369,0.46291191]
[1772952917097,0.50583819,82.409,82.37,42.49119824]
[1772952917296,0.50583819,82.409,82.372,0.46291191]
[1772952918204,0.2,82.41,82.37,42.49119824]
[1772952918205,0.50583819,82.407,82.37,42.49119824]
[1772952919914,0.50583819,82.405,82.37,42.49119824]
[1772952920816,0.50583819,82.405,82.37,42.95411015]
[1772952921203,0.50583819,82.405,82.371,0.46291191]
[1772952922102,0.50583819,82.403,82.373,0.46291191]
[1772952923416,0.50583819,82.401,82.37,30.35085589]
[1772952923623,0.50583819,82.401,82.37,30.8137678]
[1772952923922,0.50583819,82.401,82.371,0.46291191]
[1772952925819,0.50583819,82.401,82.373,0.46291191]
[1772952928122,0.50583819,82.401,82.374,12.13975283]
[1772952928320,0.50583819,82.401,82.375,0.46291191]
[1772952934211,0.50583819,82.401,82.377,0.49593762]
[1772952936126,0.50583819,82.401,82.379,0.49593762]
[1772952941327,0.50583819,82.401,82.38,12.13886865]
[1772952942836,0.50583819,82.401,82.38,12.63480627]
[1772952943436,0.50583819,82.401,82.381,0.49593762]
[1772952948022,12.13312464,82.419,82.383,0.49593762]
[1772952950126,0.11172795,82.418,82.384,12.13827927]
[1772952950341,0.11172795,82.418,82.385,0.49593762]
[1772952951845,0.11172795,82.418,82.386,12.1379846]
[1772952952019,0.11172795,82.418,82.386,12.63392222]
[1772952952344,0.11172795,82.418,82.387,0.49593762]
[1772952954146,0.11172795,82.418,82.389,0.49593762]
[1772952957828,0.11172795,82.418,82.385,0.49593762]
[1772952962552,0.11172795,82.418,82.387,0.51421503]
[1772952962944,12.25252279,82.424,82.388,0.51421503]
[1772952964348,0.11999662,82.424,82.388,0.51421503]
[1772952964860,0.12098962,82.433,82.391,0.51421503]
[1772952966252,0.12147968,82.439,82.391,0.51421503]
[1772952966842,0.12196531,82.438,82.394,0.51421503]
[1772952969846,0.12196531,82.438,82.396,0.51421503]
[1772952972178,0.12196531,82.438,82.398,0.51421503]
[1772952974568,0.12196531,82.438,82.4,0.51421503]
[1772952975461,0.12196531,82.438,82.401,12.13577505]
[1772952975662,0.12196531,82.438,82.402,0.51421503]
[1772952981772,0.12196531,82.438,82.404,0.51421503]
[1772952982158,0.12860175,82.439,82.404,0.51421503]
[1772952983074,0.12900546,82.429,82.399,0.51421503]
[1772952983869,0.12900546,82.429,82.4,12.13592233]
[1772952984178,0.12900546,82.429,82.4,12.65013736]
[1772952984877,0.12900546,82.429,82.401,0.51421503]
[1772952988585,0.12900546,82.429,82.392,0.51421503]
[1772952995619,0.12900546,82.429,82.394,0.47744682]
[1772953002421,0.12900546,82.429,82.396,0.47744682]
[1772953005132,0.12900546,82.429,82.398,0.47744682]
[1772953008127,0.12900546,82.429,82.4,0.47744682]
[1772953010940,0.12900546,82.429,82.402,0.47744682]
[1772953013237,0.12900546,82.429,82.404,0.47744682]
[1772953017134,0.12900546,82.429,82.406,0.47744682]
[1772953018434,0.12900546,82.429,82.408,0.47744682]
[1772953020844,0.12900546,82.429,82.409,12.13459694]
[1772953021221,0.12900546,82.429,82.409,12.61204376]
[1772953021834,0.12900546,82.429,82.378,42.48707178]
[1772953023024,0.4773736,82.428,82.378,30.34790842]
[1772953023822,0.4773736,82.428,82.379,0.50541166]
[1772953026344,0.4773736,82.426,82.381,0.50541166]
[1772953028028,0.4773736,82.419,82.381,0.50541166]
[1772953028226,12.13327185,82.418,82.382,12.13857396]
[1772953028528,0.4773736,82.417,82.382,12.13857396]
[1772953028730,0.4773736,82.417,82.383,0.50541166]
[1772953031047,0.4773736,82.415,82.385,0.50541166]
[1772953034948,0.4773736,82.413,82.387,0.50541166]
[1772953038258,0.4773736,82.413,82.389,0.50541166]
[1772953039445,0.4773736,82.411,82.389,0.50541166]
[1772953040946,0.4773736,82.411,82.391,0.50541166]
[1772953041146,4.71107021,82.42,82.391,0.50541166]
[1772953042863,12.13312464,82.419,82.391,0.50541166]
[1772953043062,0.14873359,82.418,82.391,0.50541166]
[1772953060580,0.15451926,82.428,82.393,0.51634316]
[1772953065088,0.15558389,82.427,82.393,0.51634316]
[1772953066862,0.15558389,82.427,82.395,0.51634316]
[1772953070698,0.15558389,82.427,82.397,0.51634316]
[1772953071986,12.13179987,82.428,82.397,0.51634316]
[1772953073376,12.1301811,82.439,82.399,0.51634316]
[1772953075390,12.1301811,82.439,82.401,0.51634316]
[1772953078188,12.1301811,82.439,82.403,0.51634316]
[1772953078687,12.28910579,82.439,82.403,0.51634316]
[1772953079194,0.15892469,82.438,82.405,0.51634316]
[1772953083879,0.15892469,82.438,82.376,103.6]
[1772953083880,0.2,82.45,82.408,0.48953595]
[1772953085483,12.12870986,82.449,82.408,0.48953595]
[1772953085684,0.16081836,82.448,82.408,0.48953595]
[1772953086005,0.16081836,82.448,82.41,0.48953595]
[1772953086197,0.2,82.45,82.41,0.48953595]
[1772953086681,0.16101973,82.449,82.41,0.48953595]
[1772953087906,0.16121724,82.448,82.412,0.48953595]
[1772953088485,12.12870986,82.449,82.412,0.48953595]
[1772953088690,0.2,82.45,82.412,0.48953595]
[1772953089903,12.32859613,82.45,82.414,0.48953595]
[1772953092210,12.32859613,82.45,82.416,0.48953595]
[1772953093304,12.32859613,82.45,82.411,30.33575614]
[1772953093305,12.32859613,82.45,82.418,0.48953595]
[1772953093511,0.736,82.509,82.418,0.48953595]
[1772953093512,103.48069693,82.546,82.42,3.69383402]
[1772953093683,4.71300839,82.54,82.465,3.69383402]
[1772953093889,0.53658192,82.529,82.469,3.69383402]
[1772953095007,0.53658192,82.519,82.473,3.69383402]
[1772953095410,0.53658192,82.519,82.474,42.43761669]
[1772953098611,0.53658192,82.519,82.474,30.31258335]
[1772953099389,0.53658192,82.517,82.474,30.31258335]
[1772953102591,0.53658192,82.517,82.466,60.63104794]
[1772953105112,0.53658192,82.517,82.467,0.14216157]
[1772953108011,0.82090506,82.532,82.468,103.07028179]
[1772953108210,0.53658192,82.532,82.472,0.28432314]
[1772953108413,0.53658192,82.532,82.473,0.02070954]
[1772953109102,0.53658192,82.532,82.477,0.02070954]
[1772953109407,0.53658192,82.532,82.478,0.02070954]
[1772953109625,0.1,82.56,82.543,0.33976633]
[1772953109927,1e-08,82.57,82.543,0.33976633]
[1772953110220,0.2,82.59,82.519,0.28432314]
[1772953110508,1e-08,82.58,82.525,0.28432314]
[1772953111313,1e-08,82.58,82.53,0.28432314]
[1772953111716,0.54756146,82.579,82.53,0.28432314]
[1772953113200,0.54756146,82.577,82.53,12.116806]
[1772953113421,0.54756146,82.569,82.53,12.116806]
[1772953115325,0.54756146,82.567,82.511,3.69383402]
[1772953118310,0.54756146,82.565,82.512,42.41807252]
[1772953120630,0.54756146,82.563,82.512,42.41807252]
[1772953121658,0.54756146,82.549,82.512,12.11944929]
[1772953122332,0.54756146,82.539,82.5,12.12121212]
[1772953122533,0.54756146,82.539,82.461,4.82477569]
[1772953122728,0.54756146,82.539,82.465,5.10909883]
[1772953122933,0.54756146,82.539,82.469,0.28432314]
[1772953126641,0.54756146,82.539,82.474,0.28432314]
[1772953126941,0.54756146,82.539,82.474,0.45432314]
[1772953128031,0.54756146,82.539,82.478,3.69383402]
[1772953128235,0.54756146,82.539,82.479,0.28432314]
[1772953130238,0.54756146,82.539,82.483,3.69383402]
[1772953130840,12.11496351,82.543,82.484,0.28432314]
[1772953131036,0.54756146,82.542,82.484,0.28432314]
[1772953131949,0.54756146,82.542,82.489,0.28432314]
[1772953133831,12.11519123,82.541,82.49,42.42938537]
[1772953134035,0.54756146,82.54,82.493,3.69383402]
[1772953135032,0.54756146,82.539,82.493,3.69383402]
[1772953136144,0.54756146,82.539,82.485,60.61708189]
[1772953136145,0.54756146,82.539,82.494,42.42732804]
[1772953138948,0.54756146,82.539,82.494,30.30523432]
[1772953140941,0.54756146,82.537,82.494,30.30523432]
[1772953143356,4.69208203,82.54,82.489,60.61414249]
[1772953143357,0.54756146,82.535,82.489,60.61414249]
[1772953144346,0.54756146,82.533,82.489,60.61414249]
[1772953146260,12.11651238,82.532,82.489,60.61414249]
[1772953146459,0.54756146,82.531,82.489,60.61414249]
[1772953151675,0.54756146,82.529,82.479,3.69383402]
[1772953152360,0.54756146,82.529,82.48,0.28432314]
[1772953153468,0.54756146,82.529,82.481,42.4340151]
[1772953157571,0.54756146,82.527,82.481,42.4340151]
[1772953158758,0.54756146,82.525,82.481,42.4340151]
[1772953160673,0.54756146,82.519,82.481,12.12400431]
[1772953160858,4.69208203,82.52,82.431,12.13135834]
[1772953160859,0.54756146,82.517,82.431,12.13135834]
[1772953161060,0.54756146,82.517,82.44,0.28432314]
[1772953161265,0.54756146,82.517,82.435,3.69383402]
[1772953161266,0.54756146,82.517,82.437,0.28432314]
[1772953161679,0.54756146,82.517,82.44,3.69383402]
[1772953161976,0.54756146,82.517,82.441,0.28432314]
[1772953162877,0.54756146,82.509,82.445,3.69383402]
[1772953163060,0.54756146,82.509,82.446,0.28432314]
[1772953165277,42.42012895,82.508,82.447,103.09653472]
[1772953165462,0.54756146,82.507,82.451,0.28432314]
[1772953167377,0.54756146,82.499,82.452,42.44893998]
[1772953168364,0.54756146,82.498,82.452,30.32067142]
[1772953169582,0.54756146,82.496,82.452,30.32067142]
[1772953170782,0.54756146,82.494,82.452,30.32067142]
[1772953173883,0.54756146,82.492,82.447,60.64502043]
[1772953177087,0.54756146,82.49,82.447,60.64502043]
[1772953177387,0.54756146,82.49,82.436,42.45717889]
[1772953177388,0.54756146,82.49,82.439,3.69383402]
[1772953177586,0.54756146,82.49,82.44,0.28432314]
[1772953179399,0.54756146,82.49,82.441,42.45460389]
[1772953180998,0.54756146,82.488,82.441,42.45460389]
[1772953182901,0.54756146,82.486,82.429,0.28432314]
[1772953183396,0.54756146,82.479,82.429,0.28432314]
[1772953183709,0.54756146,82.469,82.424,42.46336018]
[1772953184783,0.54756146,82.469,82.425,0.28432314]
[1772953185299,0.54756146,82.469,82.427,0.28432314]
[1772953186785,0.54756146,82.469,82.429,0.28432314]
[1772953189315,0.54756146,82.474,82.431,0.28432314]
[1772953190677,0.54756146,82.474,82.432,42.45923913]
[1772953191804,0.54756146,82.472,82.432,42.45923913]